[Event "Titled Tuesday Blitz December 06 Late 2022"]
[White "Droin, Augustin"]
[Black "Weisz, Bryan"]
[WhiteFideId "45105987"]
[BlackFideId "30934133"]
[WhiteElo "2316"]
[BlackElo "2304"]
[Result "1-0"]
[Round "05"]
[TimeControl "180+1"]
[Date "2022.12.07"]
[WhiteClock "0:00:26"]
[BlackClock "0:00:04"]

1. e4 {[%clk 0:03:00]}  e5 {[%clk 0:02:59]} 2. Nf3 {[%clk 0:02:56]}  f6 {[%clk 0:02:55]} 3. Nxe5 {[%clk 0:02:55]}  Qe7 {[%clk 0:02:54]} 4. Nf3 {[%clk 0:02:47]}  d5 {[%clk 0:02:53]} 5. d3 {[%clk 0:02:45]}  dxe4 {[%clk 0:02:53]} 6. dxe4 {[%clk 0:02:46]}  Qxe4+ {[%clk 0:02:53]} 7. Be2 {[%clk 0:02:45]}  Bf5 {[%clk 0:02:54]} 8. O-O {[%clk 0:02:42]}  Qxc2 {[%clk 0:02:52]} 9. Qe1 {[%clk 0:02:42]}  Ne7 {[%clk 0:02:28]} 10. Nc3 {[%clk 0:02:39]}  Nbc6 {[%clk 0:02:26]} 11. Bf4 {[%clk 0:02:31]}  O-O-O {[%clk 0:02:22]} 12. Rc1 {[%clk 0:02:29]}  Qxb2 {[%clk 0:02:18]} 13. Bc4 {[%clk 0:02:25]}  Ng6 {[%clk 0:02:07]} 14. Be3 {[%clk 0:02:19]}  Nge5 {[%clk 0:01:58]} 15. Nxe5 {[%clk 0:01:59]}  Nxe5 {[%clk 0:01:58]} 16. Na4 {[%clk 0:00:49]}  Qa3 {[%clk 0:01:50]} 17. Qa5 {[%clk 0:00:48]}  b6 {[%clk 0:01:16]} 18. Qxa7 {[%clk 0:00:45]}  Nxc4 {[%clk 0:01:06]} 19. Rxc4 {[%clk 0:00:46]}  Kd7 {[%clk 0:00:23]} 20. Qxc7+ {[%clk 0:00:39]}  Ke8 {[%clk 0:00:23]} 21. Bxb6 {[%clk 0:00:35]}  Qd6 {[%clk 0:00:18]} 22. Qxd8+ {[%clk 0:00:34]}  Qxd8 {[%clk 0:00:18]} 23. Bxd8 {[%clk 0:00:34]}  Kxd8 {[%clk 0:00:19]} 24. Rd1+ {[%clk 0:00:35]}  Ke7 {[%clk 0:00:16]} 25. Nc5 {[%clk 0:00:35]}  Kf7 {[%clk 0:00:15]} 26. a4 {[%clk 0:00:36]}  Be7 {[%clk 0:00:10]} 27. Nb7 {[%clk 0:00:28]}  Rb8 {[%clk 0:00:09]} 28. Rc7 {[%clk 0:00:25]}  Be4 {[%clk 0:00:04]} 29. Nd6+ {[%clk 0:00:25]}  Ke6 {[%clk 0:00:04]} 30. Nxe4 {[%clk 0:00:26]} 1-0


[Site "https://www.chess.com"]

[Event "Titled Tuesday Blitz December 06 Late 2022"]
[White "Eljanov, Pavel"]
[Black "Postnikov, Daniil"]
[WhiteFideId "14102951"]
[BlackFideId "4166329"]
[WhiteElo "2598"]
[BlackElo "2261"]
[Result "1-0"]
[Round "05"]
[TimeControl "180+1"]
[Date "2022.12.06"]
[WhiteClock "0:00:25"]
[BlackClock "0:00:03"]

1. e4 {[%clk 0:02:54]}  e6 {[%clk 0:02:59]} 2. d4 {[%clk 0:02:51]}  d5 {[%clk 0:03:00]} 3. Nc3 {[%clk 0:02:52]}  Nf6 {[%clk 0:03:00]} 4. Bg5 {[%clk 0:02:51]}  Bb4 {[%clk 0:03:00]} 5. e5 {[%clk 0:02:50]}  h6 {[%clk 0:03:01]} 6. Bd2 {[%clk 0:02:44]}  Bxc3 {[%clk 0:03:01]} 7. bxc3 {[%clk 0:02:45]}  Ne4 {[%clk 0:03:01]} 8. Bc1 {[%clk 0:02:46]}  Nxc3 {[%clk 0:02:50]} 9. Qg4 {[%clk 0:02:45]}  g6 {[%clk 0:02:50]} 10. Bd3 {[%clk 0:02:41]}  c5 {[%clk 0:02:49]} 11. dxc5 {[%clk 0:02:42]}  Nc6 {[%clk 0:02:49]} 12. Nf3 {[%clk 0:02:42]}  Qa5 {[%clk 0:02:38]} 13. O-O {[%clk 0:02:37]}  Qxc5 {[%clk 0:02:32]} 14. a4 {[%clk 0:02:35]}  Qb4 {[%clk 0:02:14]} 15. Qg3 {[%clk 0:02:26]}  Ne4 {[%clk 0:02:10]} 16. Qh4 {[%clk 0:02:08]}  g5 {[%clk 0:01:42]} 17. Nxg5 {[%clk 0:02:00]}  Nxg5 {[%clk 0:01:38]} 18. Bxg5 {[%clk 0:02:01]}  Qxh4 {[%clk 0:01:32]} 19. Bxh4 {[%clk 0:02:00]}  Nb4 {[%clk 0:01:32]} 20. Bf6 {[%clk 0:01:59]}  Rg8 {[%clk 0:01:31]} 21. Bh7 {[%clk 0:01:59]}  Rg4 {[%clk 0:01:31]} 22. f4 {[%clk 0:01:48]}  Bd7 {[%clk 0:01:00]} 23. Rab1 {[%clk 0:01:47]}  a5 {[%clk 0:00:55]} 24. c3 {[%clk 0:01:47]}  Na6 {[%clk 0:00:55]} 25. Rf3 {[%clk 0:01:40]}  Nc5 {[%clk 0:00:46]} 26. h3 {[%clk 0:01:39]}  Rg6 {[%clk 0:00:47]} 27. Bxg6 {[%clk 0:00:50]}  fxg6 {[%clk 0:00:48]} 28. Rg3 {[%clk 0:00:50]}  Kf7 {[%clk 0:00:47]} 29. c4 {[%clk 0:00:50]}  Bc6 {[%clk 0:00:31]} 30. cxd5 {[%clk 0:00:49]}  Bxd5 {[%clk 0:00:32]} 31. Rc3 {[%clk 0:00:49]}  Na6 {[%clk 0:00:15]} 32. Rb6 {[%clk 0:00:45]}  g5 {[%clk 0:00:11]} 33. fxg5 {[%clk 0:00:44]}  hxg5 {[%clk 0:00:12]} 34. Bxg5 {[%clk 0:00:45]}  Kg6 {[%clk 0:00:13]} 35. h4 {[%clk 0:00:41]}  Rf8 {[%clk 0:00:09]} 36. Rg3 {[%clk 0:00:39]}  Rc8 {[%clk 0:00:06]} 37. Bd2+ {[%clk 0:00:33]}  Kf5 {[%clk 0:00:06]} 38. h5 {[%clk 0:00:32]}  Rc2 {[%clk 0:00:06]} 39. h6 {[%clk 0:00:31]}  Rc7 {[%clk 0:00:03]} 40. Rb1 {[%clk 0:00:27]}  Rh7 {[%clk 0:00:03]} 41. Rf1+ {[%clk 0:00:26]}  Kxe5 {[%clk 0:00:03]} 42. Rg7 {[%clk 0:00:26]}  Rh8 {[%clk 0:00:03]} 43. Bc3+ {[%clk 0:00:26]}  Ke4 {[%clk 0:00:03]} 44. Rg4+ {[%clk 0:00:25]} 1-0


[Site "https://www.chess.com"]

[Event "Titled Tuesday Blitz December 06 Late 2022"]
[White "Erdogmus, Yagiz Kaan"]
[Black "Santos Flores, Alberto"]
[WhiteFideId "44599790"]
[BlackFideId "3601234"]
[WhiteElo "2353"]
[BlackElo "2235"]
[Result "1-0"]
[Round "05"]
[TimeControl "180+1"]
[Date "2022.12.07"]
[WhiteClock "0:00:18"]
[BlackClock "0:00:16"]

1. d4 {[%clk 0:03:00]}  d5 {[%clk 0:02:58]} 2. c4 {[%clk 0:02:55]}  c6 {[%clk 0:02:58]} 3. Nf3 {[%clk 0:02:52]}  Nf6 {[%clk 0:02:58]} 4. Nc3 {[%clk 0:02:52]}  dxc4 {[%clk 0:02:58]} 5. Bg5 {[%clk 0:02:48]}  b5 {[%clk 0:02:55]} 6. Bxf6 {[%clk 0:02:22]}  exf6 {[%clk 0:02:55]} 7. a4 {[%clk 0:02:22]}  Bb4 {[%clk 0:02:42]} 8. g3 {[%clk 0:02:21]}  O-O {[%clk 0:02:37]} 9. Bg2 {[%clk 0:02:21]}  Bb7 {[%clk 0:02:33]} 10. O-O {[%clk 0:02:19]}  a6 {[%clk 0:02:32]} 11. Nh4 {[%clk 0:02:02]}  Qc7 {[%clk 0:02:22]} 12. e3 {[%clk 0:01:59]}  Nd7 {[%clk 0:02:20]} 13. Ne4 {[%clk 0:01:51]}  c5 {[%clk 0:01:56]} 14. d5 {[%clk 0:01:48]}  Nb6 {[%clk 0:01:51]} 15. d6 {[%clk 0:01:29]}  Qd7 {[%clk 0:01:51]} 16. a5 {[%clk 0:01:20]}  Na4 {[%clk 0:01:37]} 17. Nxf6+ {[%clk 0:00:46]}  gxf6 {[%clk 0:01:34]} 18. Bxb7 {[%clk 0:00:44]}  Qxb7 {[%clk 0:01:24]} 19. Qg4+ {[%clk 0:00:43]}  Kh8 {[%clk 0:01:24]} 20. Qf4 {[%clk 0:00:42]}  Rg8 {[%clk 0:00:34]} 21. Qxf6+ {[%clk 0:00:41]}  Rg7 {[%clk 0:00:34]} 22. Nf5 {[%clk 0:00:41]}  Rg8 {[%clk 0:00:35]} 23. Nxg7 {[%clk 0:00:39]}  Rxg7 {[%clk 0:00:34]} 24. d7 {[%clk 0:00:40]}  Qxd7 {[%clk 0:00:33]} 25. Rad1 {[%clk 0:00:36]}  Bd2 {[%clk 0:00:30]} 26. Qxa6 {[%clk 0:00:33]}  Nxb2 {[%clk 0:00:28]} 27. Rxd2 {[%clk 0:00:25]}  Qxd2 {[%clk 0:00:28]} 28. Qxb5 {[%clk 0:00:21]}  c3 {[%clk 0:00:25]} 29. a6 {[%clk 0:00:21]}  Qd3 {[%clk 0:00:20]} 30. Qb8+ {[%clk 0:00:18]}  Rg8 {[%clk 0:00:20]} 31. Qe5+ {[%clk 0:00:19]}  Rg7 {[%clk 0:00:20]} 32. a7 {[%clk 0:00:19]}  Nc4 {[%clk 0:00:16]} 33. a8=Q+ {[%clk 0:00:18]} 1-0


[Site "https://www.chess.com"]

[Event "Titled Tuesday Blitz December 06 Late 2022"]
[White "Gallo Garcia, Kemel Antonio"]
[Black "Kravtsiv, Martyn"]
[WhiteFideId "3523896"]
[BlackFideId "14113147"]
[WhiteElo "2359"]
[BlackElo "2695"]
[Result "0-1"]
[Round "05"]
[TimeControl "180+1"]
[Date "2022.12.06"]
[WhiteClock "0:00:41"]
[BlackClock "0:00:25"]

1. d4 {[%clk 0:02:52]}  d5 {[%clk 0:02:59]} 2. c4 {[%clk 0:02:49]}  e6 {[%clk 0:02:59]} 3. Nf3 {[%clk 0:02:49]}  Nf6 {[%clk 0:02:58]} 4. g3 {[%clk 0:02:50]}  Bb4+ {[%clk 0:02:57]} 5. Bd2 {[%clk 0:02:49]}  Be7 {[%clk 0:02:58]} 6. Bg2 {[%clk 0:02:50]}  O-O {[%clk 0:02:58]} 7. O-O {[%clk 0:02:51]}  c6 {[%clk 0:02:58]} 8. Nc3 {[%clk 0:02:47]}  Nbd7 {[%clk 0:02:51]} 9. Bf4 {[%clk 0:02:46]}  dxc4 {[%clk 0:02:51]} 10. e4 {[%clk 0:02:46]}  Bb4 {[%clk 0:02:09]} 11. e5 {[%clk 0:02:44]}  Nd5 {[%clk 0:02:06]} 12. Bd2 {[%clk 0:02:43]}  Bxc3 {[%clk 0:02:00]} 13. bxc3 {[%clk 0:02:44]}  h6 {[%clk 0:01:58]} 14. Re1 {[%clk 0:02:29]}  Qe7 {[%clk 0:01:53]} 15. Re4 {[%clk 0:02:26]}  f5 {[%clk 0:01:36]} 16. exf6 {[%clk 0:02:23]}  N7xf6 {[%clk 0:01:37]} 17. Re2 {[%clk 0:02:21]}  b5 {[%clk 0:01:07]} 18. Ne5 {[%clk 0:02:20]}  Qd6 {[%clk 0:01:05]} 19. a4 {[%clk 0:02:13]}  Bd7 {[%clk 0:01:01]} 20. Qc1 {[%clk 0:02:02]}  Be8 {[%clk 0:00:57]} 21. f4 {[%clk 0:01:50]}  a5 {[%clk 0:00:51]} 22. axb5 {[%clk 0:01:49]}  cxb5 {[%clk 0:00:50]} 23. g4 {[%clk 0:01:48]}  Ra6 {[%clk 0:00:42]} 24. Bf3 {[%clk 0:01:42]}  Nd7 {[%clk 0:00:40]} 25. Be4 {[%clk 0:01:25]}  Nxe5 {[%clk 0:00:39]} 26. fxe5 {[%clk 0:01:26]}  Qe7 {[%clk 0:00:34]} 27. Qc2 {[%clk 0:01:24]}  Nf4 {[%clk 0:00:30]} 28. Bxf4 {[%clk 0:01:06]}  Rxf4 {[%clk 0:00:31]} 29. Rf2 {[%clk 0:01:05]}  Rxg4+ {[%clk 0:00:30]} 30. Kh1 {[%clk 0:01:05]}  Rxe4 {[%clk 0:00:30]} 31. Raf1 {[%clk 0:00:46]}  Bc6 {[%clk 0:00:29]} 32. Rf8+ {[%clk 0:00:46]}  Qxf8 {[%clk 0:00:29]} 33. Rxf8+ {[%clk 0:00:47]}  Kxf8 {[%clk 0:00:29]} 34. Kg1 {[%clk 0:00:48]}  Rg4+ {[%clk 0:00:27]} 35. Kf1 {[%clk 0:00:46]}  Ra7 {[%clk 0:00:27]} 36. Qh7 {[%clk 0:00:43]}  Rf7+ {[%clk 0:00:26]} 37. Ke1 {[%clk 0:00:43]}  Ke7 {[%clk 0:00:25]} 38. Qh8 {[%clk 0:00:42]}  Rf8 {[%clk 0:00:25]} 39. Qh7 {[%clk 0:00:41]}  Be4 {[%clk 0:00:25]} 0-1


[Site "https://www.chess.com"]

[Event "Titled Tuesday Blitz December 06 Late 2022"]
[White "Girsh, Daniel"]
[Black "Espinosa, Pedro"]
[WhiteFideId "30949190"]
[BlackFideId "30921066"]
[WhiteElo "2075"]
[BlackElo "2016"]
[Result "1-0"]
[Round "05"]
[TimeControl "180+1"]
[Date "2022.12.07"]
[WhiteClock "0:01:09"]
[BlackClock "0:00:19"]

1. d4 {[%clk 0:03:00]}  d5 {[%clk 0:02:43]} 2. c4 {[%clk 0:03:00]}  c6 {[%clk 0:02:42]} 3. Nf3 {[%clk 0:03:01]}  Nf6 {[%clk 0:02:42]} 4. Qb3 {[%clk 0:03:01]}  dxc4 {[%clk 0:02:39]} 5. Qxc4 {[%clk 0:03:02]}  Bf5 {[%clk 0:02:39]} 6. g3 {[%clk 0:03:01]}  e6 {[%clk 0:02:40]} 7. Bg2 {[%clk 0:03:02]}  Nbd7 {[%clk 0:02:40]} 8. O-O {[%clk 0:03:01]}  Be7 {[%clk 0:02:40]} 9. Nbd2 {[%clk 0:03:01]}  h6 {[%clk 0:02:38]} 10. Qb3 {[%clk 0:03:01]}  Qb6 {[%clk 0:02:35]} 11. Nc4 {[%clk 0:03:01]}  Qxb3 {[%clk 0:02:35]} 12. axb3 {[%clk 0:03:02]}  O-O {[%clk 0:02:35]} 13. Na5 {[%clk 0:03:02]}  Bb4 {[%clk 0:01:38]} 14. Nxb7 {[%clk 0:03:01]}  Rfb8 {[%clk 0:01:38]} 15. Na5 {[%clk 0:02:53]}  Bxa5 {[%clk 0:01:38]} 16. Rxa5 {[%clk 0:02:54]}  Rxb3 {[%clk 0:01:37]} 17. Nd2 {[%clk 0:02:54]}  Rb6 {[%clk 0:01:33]} 18. Nc4 {[%clk 0:02:54]}  Rb4 {[%clk 0:01:30]} 19. Bxc6 {[%clk 0:02:43]}  Rc8 {[%clk 0:01:29]} 20. Bxd7 {[%clk 0:02:35]}  Rcxc4 {[%clk 0:01:18]} 21. Rxa7 {[%clk 0:02:29]}  Rxd4 {[%clk 0:01:15]} 22. Bc6 {[%clk 0:02:23]}  Bh3 {[%clk 0:01:08]} 23. Bg2 {[%clk 0:02:21]}  Bxg2 {[%clk 0:01:08]} 24. Kxg2 {[%clk 0:02:21]}  Rdc4 {[%clk 0:01:07]} 25. Rd1 {[%clk 0:02:15]}  Rc2 {[%clk 0:01:02]} 26. Kf3 {[%clk 0:01:53]}  Rbc4 {[%clk 0:00:51]} 27. Be3 {[%clk 0:01:52]}  Nd5 {[%clk 0:00:45]} 28. Bd4 {[%clk 0:01:44]}  Rc7 {[%clk 0:00:40]} 29. Rxc7 {[%clk 0:01:43]}  Rxc7 {[%clk 0:00:41]} 30. e4 {[%clk 0:01:33]}  Ne7 {[%clk 0:00:40]} 31. Ke3 {[%clk 0:01:15]}  Nc6 {[%clk 0:00:38]} 32. Rc1 {[%clk 0:01:13]}  Rc8 {[%clk 0:00:22]} 33. b4 {[%clk 0:01:11]}  Ne7 {[%clk 0:00:18]} 34. Rxc8+ {[%clk 0:01:10]}  Nxc8 {[%clk 0:00:19]} 35. Bc5 {[%clk 0:01:09]} 1-0


[Site "https://www.chess.com"]

[Event "Titled Tuesday Blitz December 06 Late 2022"]
[White "Goroshkov, Maksym"]
[Black "Graif, William"]
[WhiteFideId "14142716"]
[BlackFideId "2609835"]
[WhiteElo "2258"]
[BlackElo "2205"]
[Result "1-0"]
[Round "05"]
[TimeControl "180+1"]
[Date "2022.12.07"]
[WhiteClock "0:01:44"]
[BlackClock "0:00:01"]

1. e4 {[%clk 0:02:58]}  e5 {[%clk 0:02:58]} 2. d4 {[%clk 0:02:58]}  exd4 {[%clk 0:02:55]} 3. c3 {[%clk 0:02:58]}  dxc3 {[%clk 0:02:38]} 4. Bc4 {[%clk 0:02:57]}  cxb2 {[%clk 0:02:36]} 5. Bxb2 {[%clk 0:02:58]}  d5 {[%clk 0:02:33]} 6. Bxd5 {[%clk 0:02:57]}  Nf6 {[%clk 0:02:28]} 7. Nf3 {[%clk 0:02:51]}  Bb4+ {[%clk 0:02:01]} 8. Kf1 {[%clk 0:02:49]}  O-O {[%clk 0:01:36]} 9. Bxf7+ {[%clk 0:02:44]}  Kh8 {[%clk 0:01:18]} 10. Qxd8 {[%clk 0:02:33]}  Rxd8 {[%clk 0:01:17]} 11. Nc3 {[%clk 0:02:25]}  Bxc3 {[%clk 0:01:04]} 12. Bxc3 {[%clk 0:02:26]}  Nxe4 {[%clk 0:01:04]} 13. Be5 {[%clk 0:02:25]}  Nc6 {[%clk 0:00:48]} 14. Bb3 {[%clk 0:02:22]}  Nd2+ {[%clk 0:00:29]} 15. Nxd2 {[%clk 0:02:21]}  Nxe5 {[%clk 0:00:29]} 16. Ne4 {[%clk 0:02:21]}  b6 {[%clk 0:00:27]} 17. f4 {[%clk 0:02:18]}  Ba6+ {[%clk 0:00:27]} 18. Kf2 {[%clk 0:02:16]}  Nd3+ {[%clk 0:00:23]} 19. Kg3 {[%clk 0:02:16]}  Rd4 {[%clk 0:00:20]} 20. Ng5 {[%clk 0:02:15]}  Nxf4 {[%clk 0:00:18]} 21. Rad1 {[%clk 0:02:01]}  Ne2+ {[%clk 0:00:18]} 22. Kh3 {[%clk 0:01:59]}  h6 {[%clk 0:00:17]} 23. Nf7+ {[%clk 0:01:57]}  Kh7 {[%clk 0:00:17]} 24. Bc2+ {[%clk 0:01:57]}  g6 {[%clk 0:00:18]} 25. Ne5 {[%clk 0:01:56]}  Nf4+ {[%clk 0:00:16]} 26. Kg3 {[%clk 0:01:56]}  Rxd1 {[%clk 0:00:15]} 27. Rxd1 {[%clk 0:01:55]}  Nh5+ {[%clk 0:00:15]} 28. Kh4 {[%clk 0:01:53]}  Rg8 {[%clk 0:00:14]} 29. Nxg6 {[%clk 0:01:50]}  Nf6 {[%clk 0:00:05]} 30. Ne7+ {[%clk 0:01:48]}  Kg7 {[%clk 0:00:05]} 31. Nxg8 {[%clk 0:01:48]}  Kxg8 {[%clk 0:00:06]} 32. Rd8+ {[%clk 0:01:47]}  Kf7 {[%clk 0:00:06]} 33. Ra8 {[%clk 0:01:47]}  Bc4 {[%clk 0:00:04]} 34. Rxa7 {[%clk 0:01:47]}  Nd5 {[%clk 0:00:04]} 35. Be4 {[%clk 0:01:45]}  Ke6 {[%clk 0:00:03]} 36. Bxd5+ {[%clk 0:01:44]}  Bxd5 {[%clk 0:00:03]} 37. Rxc7 {[%clk 0:01:44]}  Bxg2 {[%clk 0:00:02]} 38. Kh5 {[%clk 0:01:44]}  Bd5 {[%clk 0:00:01]} 39. a3 {[%clk 0:01:44]} 1-0


[Site "https://www.chess.com"]

[Event "Titled Tuesday Blitz December 06 Late 2022"]
[White "Grapsa, Georgia"]
[Black "Yeritsyan, Hayk"]
[WhiteFideId "4206436"]
[BlackFideId "13307320"]
[WhiteElo "1825"]
[BlackElo "2415"]
[Result "0-1"]
[Round "05"]
[TimeControl "180+1"]
[Date "2022.12.07"]
[WhiteClock "0:00:28"]
[BlackClock "0:00:06"]

1. e4 {[%clk 0:02:55]}  c6 {[%clk 0:02:56]} 2. d4 {[%clk 0:02:54]}  d5 {[%clk 0:02:55]} 3. f3 {[%clk 0:02:55]}  Nf6 {[%clk 0:02:54]} 4. e5 {[%clk 0:02:52]}  Ng8 {[%clk 0:02:54]} 5. c3 {[%clk 0:02:53]}  Bf5 {[%clk 0:02:53]} 6. Bd3 {[%clk 0:02:53]}  Bxd3 {[%clk 0:02:53]} 7. Qxd3 {[%clk 0:02:53]}  e6 {[%clk 0:02:53]} 8. f4 {[%clk 0:02:54]}  Ne7 {[%clk 0:02:54]} 9. Nf3 {[%clk 0:02:54]}  c5 {[%clk 0:02:54]} 10. Be3 {[%clk 0:02:54]}  cxd4 {[%clk 0:02:53]} 11. cxd4 {[%clk 0:02:55]}  Nbc6 {[%clk 0:02:53]} 12. a3 {[%clk 0:02:55]}  Nf5 {[%clk 0:02:53]} 13. Nc3 {[%clk 0:02:53]}  h5 {[%clk 0:02:48]} 14. O-O {[%clk 0:02:52]}  Be7 {[%clk 0:02:47]} 15. Rac1 {[%clk 0:02:49]}  Qd7 {[%clk 0:02:46]} 16. b4 {[%clk 0:02:44]}  g6 {[%clk 0:02:40]} 17. Bf2 {[%clk 0:02:40]}  Kf8 {[%clk 0:02:34]} 18. g3 {[%clk 0:02:40]}  Kg7 {[%clk 0:02:34]} 19. h3 {[%clk 0:02:41]}  Rac8 {[%clk 0:02:33]} 20. Nd1 {[%clk 0:02:24]}  Ncxd4 {[%clk 0:01:55]} 21. Rxc8 {[%clk 0:02:10]}  Nxf3+ {[%clk 0:01:55]} 22. Qxf3 {[%clk 0:02:11]}  Qxc8 {[%clk 0:01:51]} 23. Bxa7 {[%clk 0:02:07]}  Qc2 {[%clk 0:01:24]} 24. Bf2 {[%clk 0:02:01]}  Ra8 {[%clk 0:01:13]} 25. g4 {[%clk 0:01:38]}  hxg4 {[%clk 0:01:06]} 26. hxg4 {[%clk 0:01:38]}  Nh6 {[%clk 0:00:56]} 27. Re1 {[%clk 0:01:20]}  Qc4 {[%clk 0:00:25]} 28. Re3 {[%clk 0:01:04]}  g5 {[%clk 0:00:23]} 29. Bg3 {[%clk 0:00:57]}  gxf4 {[%clk 0:00:15]} 30. Bxf4 {[%clk 0:00:58]}  Ng8 {[%clk 0:00:12]} 31. Re2 {[%clk 0:00:53]}  Rxa3 {[%clk 0:00:10]} 32. Ne3 {[%clk 0:00:44]}  Qxb4 {[%clk 0:00:07]} 33. Rf2 {[%clk 0:00:40]}  Qe4 {[%clk 0:00:07]} 34. Qg3 {[%clk 0:00:32]}  Bc5 {[%clk 0:00:07]} 35. Kh2 {[%clk 0:00:26]}  Bxe3 {[%clk 0:00:07]} 36. Bxe3 {[%clk 0:00:27]}  Rxe3 {[%clk 0:00:06]} 37. Qh4 {[%clk 0:00:27]}  Qxe5+ {[%clk 0:00:06]} 38. Kg2 {[%clk 0:00:28]}  Re2 {[%clk 0:00:06]} 0-1


[Site "https://www.chess.com"]

[Event "Titled Tuesday Blitz December 06 Late 2022"]
[White "Guzman Moneo, Alberto"]
[Black "Bongo Akanga Ndjila, Barthelemy"]
[WhiteFideId "2209616"]
[BlackFideId "10609431"]
[WhiteElo "2157"]
[BlackElo "1768"]
[Result "1-0"]
[Round "05"]
[TimeControl "180+1"]
[Date "2022.12.07"]
[WhiteClock "0:00:49"]
[BlackClock "0:00:43"]

1. c4 {[%clk 0:03:00]}  e6 {[%clk 0:02:57]} 2. Nf3 {[%clk 0:03:00]}  d5 {[%clk 0:02:57]} 3. g3 {[%clk 0:03:00]}  Nf6 {[%clk 0:02:57]} 4. Bg2 {[%clk 0:03:00]}  Be7 {[%clk 0:02:54]} 5. O-O {[%clk 0:03:00]}  O-O {[%clk 0:02:54]} 6. d4 {[%clk 0:03:00]}  Bd7 {[%clk 0:02:53]} 7. Ne5 {[%clk 0:02:59]}  Bc6 {[%clk 0:02:52]} 8. Nxc6 {[%clk 0:02:59]}  Nxc6 {[%clk 0:02:52]} 9. cxd5 {[%clk 0:02:58]}  Nxd5 {[%clk 0:02:44]} 10. e4 {[%clk 0:02:56]}  Nb6 {[%clk 0:02:44]} 11. Be3 {[%clk 0:02:52]}  Bf6 {[%clk 0:02:35]} 12. e5 {[%clk 0:02:41]}  Be7 {[%clk 0:02:33]} 13. Nc3 {[%clk 0:02:42]}  Nb4 {[%clk 0:02:31]} 14. Bxb7 {[%clk 0:02:39]}  Rb8 {[%clk 0:02:27]} 15. Be4 {[%clk 0:02:40]}  N4d5 {[%clk 0:02:27]} 16. Rc1 {[%clk 0:02:34]}  Nc4 {[%clk 0:02:22]} 17. Nxd5 {[%clk 0:02:05]}  exd5 {[%clk 0:02:20]} 18. Bb1 {[%clk 0:01:49]}  Nxe3 {[%clk 0:02:18]} 19. fxe3 {[%clk 0:01:49]}  Rxb2 {[%clk 0:02:18]} 20. Rc2 {[%clk 0:01:43]}  Rb6 {[%clk 0:02:09]} 21. Rcf2 {[%clk 0:01:38]}  Bg5 {[%clk 0:02:08]} 22. Qd3 {[%clk 0:01:35]}  g6 {[%clk 0:02:07]} 23. h4 {[%clk 0:01:34]}  Bh6 {[%clk 0:02:06]} 24. Kg2 {[%clk 0:01:34]}  Qe7 {[%clk 0:01:59]} 25. Bc2 {[%clk 0:01:34]}  Rb2 {[%clk 0:01:53]} 26. Bb3 {[%clk 0:01:33]}  Rxf2+ {[%clk 0:01:52]} 27. Rxf2 {[%clk 0:01:34]}  g5 {[%clk 0:01:49]} 28. Rf6 {[%clk 0:01:17]}  Bg7 {[%clk 0:01:48]} 29. hxg5 {[%clk 0:01:16]}  Bxf6 {[%clk 0:01:40]} 30. Bc2 {[%clk 0:01:03]}  Rb8 {[%clk 0:01:24]} 31. Qxh7+ {[%clk 0:01:01]}  Kf8 {[%clk 0:01:24]} 32. gxf6 {[%clk 0:01:01]}  Ke8 {[%clk 0:00:51]} 33. fxe7 {[%clk 0:00:57]}  Kxe7 {[%clk 0:00:51]} 34. Qh4+ {[%clk 0:00:54]}  Kd7 {[%clk 0:00:50]} 35. Bf5+ {[%clk 0:00:53]}  Kc6 {[%clk 0:00:50]} 36. Qf6+ {[%clk 0:00:53]}  Kb5 {[%clk 0:00:48]} 37. Qxf7 {[%clk 0:00:51]}  Kc4 {[%clk 0:00:47]} 38. Qxc7+ {[%clk 0:00:49]}  Kb4 {[%clk 0:00:43]} 39. Qxb8+ {[%clk 0:00:49]} 1-0


[Site "https://www.chess.com"]

[Event "Titled Tuesday Blitz December 06 Late 2022"]
[White "Harshavardhan G B"]
[Black "Estrada Nieto, Julian"]
[WhiteFideId "25059009"]
[BlackFideId "5101018"]
[WhiteElo "2323"]
[BlackElo "2195"]
[Result "1-0"]
[Round "05"]
[TimeControl "180+1"]
[Date "2022.12.07"]
[WhiteClock "0:00:19"]
[BlackClock "0:00:13"]

1. d4 {[%clk 0:02:52]}  d5 {[%clk 0:03:00]} 2. c4 {[%clk 0:02:52]}  dxc4 {[%clk 0:03:01]} 3. e4 {[%clk 0:02:52]}  e5 {[%clk 0:03:01]} 4. Nf3 {[%clk 0:02:52]}  exd4 {[%clk 0:03:02]} 5. Bxc4 {[%clk 0:02:51]}  Nc6 {[%clk 0:03:02]} 6. O-O {[%clk 0:02:47]}  Be6 {[%clk 0:03:03]} 7. Bxe6 {[%clk 0:02:47]}  fxe6 {[%clk 0:03:03]} 8. Qb3 {[%clk 0:02:48]}  Qd7 {[%clk 0:03:03]} 9. Qxb7 {[%clk 0:02:48]}  Rb8 {[%clk 0:03:04]} 10. Qa6 {[%clk 0:02:49]}  Nge7 {[%clk 0:02:57]} 11. Nbd2 {[%clk 0:02:45]}  Ng6 {[%clk 0:02:54]} 12. b3 {[%clk 0:02:44]}  Bd6 {[%clk 0:02:38]} 13. Bb2 {[%clk 0:02:42]}  O-O {[%clk 0:02:38]} 14. Rfc1 {[%clk 0:02:37]}  Nb4 {[%clk 0:02:33]} 15. Qc4 {[%clk 0:02:36]}  c5 {[%clk 0:02:29]} 16. Qf1 {[%clk 0:02:03]}  Nf4 {[%clk 0:02:19]} 17. Ne1 {[%clk 0:02:01]}  e5 {[%clk 0:02:05]} 18. Nc4 {[%clk 0:01:51]}  Bc7 {[%clk 0:01:50]} 19. f3 {[%clk 0:01:38]}  Qf7 {[%clk 0:01:36]} 20. Ba3 {[%clk 0:01:27]}  Qg6 {[%clk 0:01:14]} 21. Bxb4 {[%clk 0:01:23]}  Rxb4 {[%clk 0:01:13]} 22. g3 {[%clk 0:01:22]}  Ne6 {[%clk 0:00:59]} 23. Nd3 {[%clk 0:01:19]}  Rxc4 {[%clk 0:00:51]} 24. Rxc4 {[%clk 0:01:11]}  Ng5 {[%clk 0:00:51]} 25. Kg2 {[%clk 0:00:34]}  Nxe4 {[%clk 0:00:45]} 26. Nxc5 {[%clk 0:00:27]}  Nd2 {[%clk 0:00:41]} 27. Qe2 {[%clk 0:00:25]}  Nxc4 {[%clk 0:00:41]} 28. Qxc4+ {[%clk 0:00:26]}  Kh8 {[%clk 0:00:37]} 29. Ne6 {[%clk 0:00:22]}  Qf7 {[%clk 0:00:16]} 30. Nxf8 {[%clk 0:00:20]}  Qxf8 {[%clk 0:00:15]} 31. Qxc7 {[%clk 0:00:20]}  h6 {[%clk 0:00:16]} 32. Re1 {[%clk 0:00:19]}  Qb4 {[%clk 0:00:13]} 33. Qxe5 {[%clk 0:00:18]}  d3 {[%clk 0:00:12]} 34. Qe8+ {[%clk 0:00:17]}  Kh7 {[%clk 0:00:12]} 35. Qe4+ {[%clk 0:00:18]}  Qxe4 {[%clk 0:00:12]} 36. fxe4 {[%clk 0:00:19]}  d2 {[%clk 0:00:13]} 37. Rd1 {[%clk 0:00:19]} 1-0


[Site "https://www.chess.com"]